bitfinex/quotes_BTCUSD_20250417
["timestamp","ask_amount","ask_price","bid_price","bid_amount"]
[1744850516143,0.05060001,84144.0,84143.0,0.44095755]
[1744850516358,0.05060001,84144.0,84143.0,0.57923755]
[1744850516772,0.09950001,84144.0,84143.0,0.57923755]
[1744850517661,0.09950001,84144.0,84143.0,0.81692814]
[1744850519231,0.09950001,84144.0,84143.0,0.93637605]
[1744850519350,0.00100001,84144.0,84143.0,0.93637605]
[1744850524975,0.00100001,84144.0,84143.0,0.93637605]
[1744850526277,0.00100001,84144.0,84143.0,0.79809605]
[1744850526480,0.00100001,84144.0,84143.0,0.93637605]
[1744850527252,0.00100001,84144.0,84143.0,0.79809605]
[1744850527465,0.04630001,84144.0,84143.0,0.44095755]
[1744850527685,0.33358778,84144.0,84143.0,0.02215755]
[1744850527886,0.34635153,84144.0,84143.0,0.02215755]
[1744850528297,0.23771602,84134.0,84133.0,0.02215755]
[1744850528710,0.25038849,84134.0,84133.0,0.02215755]
[1744850529115,0.0118865,84129.0,84125.0,0.24962769]
[1744850529289,0.23774492,84124.0,84122.0,0.13824]
[1744850529490,0.0479,84123.0,84122.0,0.25768791]
[1744850529733,0.23774993,84122.0,84111.0,0.01188905]
[1744850529934,0.24012854,84122.0,84111.0,0.01188905]
[1744850530136,0.01252708,84121.0,84115.0,0.01188848]
[1744850530272,0.01252708,84121.0,84108.0,0.43068947]
[1744850530476,0.01490569,84121.0,84110.0,0.01188919]
[1744850530679,0.01188848,84115.0,84110.0,0.01188919]
[1744850530878,0.01188848,84115.0,84110.0,0.13179173]
[1744850531237,0.01249486,84114.0,84110.0,0.13179173]
[1744850531440,0.01188862,84114.0,84110.0,0.13179173]
[1744850531801,0.01188862,84114.0,84111.0,0.02213173]
[1744850532604,0.01188848,84115.0,84111.0,0.27180061]
[1744850532925,0.01242352,84114.0,84111.0,0.27180061]
[1744850533090,0.01242352,84114.0,84112.0,0.02213173]
[1744850533308,0.01188848,84115.0,84112.0,0.02213173]
[1744850533749,0.01242352,84114.0,84112.0,0.02213173]
[1744850533952,0.01242352,84114.0,84112.0,0.25990711]
[1744850534132,0.0479,84123.0,84119.0,0.01188792]
[1744850534565,0.02425186,84122.0,84117.0,0.0118882]
[1744850535092,0.02425186,84122.0,84120.0,0.23775548]
[1744850535093,0.01236437,84122.0,84120.0,0.23775548]
[1744850535295,0.01236437,84122.0,84121.0,0.11944791]
[1744850535486,0.0118865,84129.0,84126.0,0.01188693]
[1744850535771,0.2963138,84130.0,84127.0,0.01188679]
[1744850535915,0.01243768,84128.0,84126.0,0.24962505]
[1744850536114,0.0118865,84129.0,84126.0,0.01188693]
[1744850536317,0.01243768,84127.0,84124.0,0.01188721]
[1744850536563,0.24962268,84127.0,84125.0,0.11944791]
[1744850536740,0.01244746,84126.0,84125.0,0.11944791]
[1744850537884,0.01188664,84128.0,84125.0,0.11944791]
[1744850538187,0.001,84126.0,84125.0,0.11944791]
[1744850538387,0.01344746,84126.0,84125.0,0.11944791]
[1744850539234,0.01644746,84126.0,84125.0,0.11944791]
[1744850539435,0.01544746,84126.0,84125.0,0.11944791]
[1744850540788,0.01644746,84126.0,84125.0,0.11944791]
[1744850542850,0.2496342,84124.0,84118.0,0.23776124]
[1744850543046,0.01188749,84122.0,84117.0,0.0118882]
[1744850543355,0.01479083,84123.0,84118.0,0.03398282]
[1744850543356,0.01241434,84121.0,84118.0,0.03398282]
[1744850543525,0.02430197,84121.0,84118.0,0.02209476]
[1744850543707,0.23775703,84120.0,84118.0,0.02209476]
[1744850543913,0.01240945,84120.0,84118.0,0.02209476]
[1744850544333,0.33193702,84119.0,84118.0,0.02209476]
[1744850544522,0.33193702,84119.0,84110.0,0.00045463]
[1744850544523,0.23778102,84111.0,84110.0,0.00045463]
[1744850544720,0.28695963,84111.0,84110.0,0.00045463]
[1744850544924,0.2969395,84111.0,84110.0,0.00045463]
[1744850545123,0.3419395,84111.0,84110.0,0.00045463]
[1744850545981,0.3439395,84111.0,84110.0,0.00045463]
[1744850546141,0.3419395,84111.0,84110.0,0.00045463]
[1744850546565,0.3459395,84111.0,84110.0,0.00045463]
[1744850546762,0.3419395,84111.0,84110.0,0.00045463]
[1744850546966,0.3449395,84111.0,84110.0,0.00045463]
[1744850547183,0.3499395,84111.0,84110.0,0.00045463]
[1744850552847,0.5649347,84111.0,84110.0,0.00045463]
[1744850553049,0.33423758,84091.0,84090.0,0.000842]
[1744850553191,0.34641026,84091.0,84090.0,0.00097844]
[1744850555256,0.34841026,84091.0,84090.0,0.00097844]
[1744850555469,0.11257268,84091.0,84090.0,0.00097844]
[1744850555818,0.11057268,84091.0,84090.0,0.00097844]
[1744850556032,0.11795129,84091.0,84090.0,0.00097844]
[1744850556220,0.11595129,84091.0,84090.0,0.00097844]
[1744850557013,0.11795129,84091.0,84090.0,0.00097844]
[1744850559076,0.11557268,84091.0,84090.0,0.00097844]
[1744850559276,0.11795129,84091.0,84090.0,0.00097844]
[1744850562407,0.01917268,84091.0,84090.0,0.00097844]
[1744850563248,0.02155129,84091.0,84090.0,0.00097844]
[1744850565729,0.07015129,84091.0,84090.0,0.00097844]
[1744850566196,0.21068277,84091.0,84090.0,0.00097844]
[1744850566396,0.12931937,84091.0,84090.0,0.00097844]
[1744850566547,0.11725129,84091.0,84090.0,0.00097844]
[1744850566745,0.11525129,84091.0,84090.0,0.00097844]
[1744850567333,0.11825129,84091.0,84090.0,0.00097844]
[1744850568028,0.11325129,84091.0,84090.0,0.00097844]
[1744850568233,0.11825129,84091.0,84090.0,0.00097844]
[1744850568565,0.13025292,84091.0,84090.0,0.00097844]
[1744850568784,0.11825129,84091.0,84090.0,0.00097844]
[1744850570632,0.13036209,84091.0,84090.0,0.00097844]
[1744850570811,0.11825129,84091.0,84090.0,0.00097844]
[1744850571875,0.45825129,84091.0,84090.0,0.00097844]
[1744850572011,0.58708371,84091.0,84090.0,0.00097844]
[1744850572436,0.72107247,84091.0,84090.0,0.00097844]
[1744850572636,0.60162456,84091.0,84090.0,0.00097844]
[1744850575294,0.58708371,84091.0,84090.0,0.00097844]
[1744850575669,0.4676358,84091.0,84090.0,0.00097844]
[1744850580563,0.78162456,84091.0,84090.0,0.00097844]
[1744850580884,0.92998456,84091.0,84090.0,0.00097844]
[1744850581158,0.73998456,84091.0,84090.0,0.00097844]
[1744850581502,0.73698456,84091.0,84090.0,0.00097844]
[1744850581708,0.85643247,84091.0,84090.0,0.00097844]
[1744850582128,0.86343247,84091.0,84090.0,0.00197844]
[1744850582672,1.03343247,84091.0,84090.0,0.00197844]
[1744850582824,1.01343247,84091.0,84090.0,0.00197844]
[1744850583238,0.59239257,84086.0,84085.0,0.0008426]
[1744850583462,1.00128048,84086.0,84085.0,0.0008426]
[1744850583879,1.00848801,84086.0,84085.0,1e-08]
[1744850584053,1.00848801,84086.0,84058.0,0.0008424]
[1744850584054,0.69011803,84077.0,84058.0,0.0008424]
[1744850584257,0.97125551,84077.0,84076.0,0.00097904]
[1744850585461,0.97125551,84077.0,84076.0,1e-08]
[1744850585774,0.98125551,84077.0,84076.0,1e-08]
[1744850585974,1.39315551,84077.0,84076.0,1e-08]
[1744850586173,0.69016897,84059.0,84058.0,0.0008424]
[1744850586379,0.94797688,84059.0,84058.0,0.0008424]
[1744850586583,0.9695151,84059.0,84058.0,0.0008424]
[1744850588275,0.9735151,84059.0,84058.0,0.0008424]
[1744850589141,0.8391551,84059.0,84058.0,0.0008424]
[1744850589320,0.9775151,84059.0,84058.0,0.0008424]
[1744850589701,1.10876073,84059.0,84058.0,0.0008424]
[1744850589922,0.83352634,84059.0,84058.0,0.0008424]
[1744850590326,0.69516634,84059.0,84058.0,0.0008424]
[1744850593799,0.83356634,84059.0,84058.0,0.0008424]
[1744850594695,0.69516634,84059.0,84058.0,0.0008424]
[1744850594916,0.83356634,84059.0,84058.0,0.0008424]
[1744850595449,0.69516634,84059.0,84058.0,0.0008424]
[1744850595673,0.30636634,84059.0,84058.0,0.0008424]
[1744850595875,0.25746634,84059.0,84058.0,0.0008424]
[1744850597936,0.01953822,84059.0,84058.0,0.0008424]
[1744850598138,0.02191683,84059.0,84058.0,0.0008424]
[1744850599304,0.01791683,84059.0,84058.0,0.0008424]
[1744850599708,0.02091683,84059.0,84058.0,0.0008424]
[1744850600872,0.01691683,84059.0,84058.0,0.0008424]
[1744850601054,0.01891683,84059.0,84058.0,0.0018424]
[1744850601404,0.01591683,84059.0,84058.0,0.0008424]
[1744850601627,0.01891683,84059.0,84058.0,0.0018424]
[1744850605373,0.01653822,84059.0,84058.0,0.0018424]
[1744850605774,0.005,84059.0,84058.0,0.0018424]
[1744850605981,0.01654084,84059.0,84058.0,0.0018424]
[1744850606131,0.005,84059.0,84058.0,0.0018424]
[1744850606350,0.01654084,84059.0,84058.0,0.0018424]
[1744850609854,0.01654084,84059.0,84058.0,0.02407134]
[1744850610340,0.01654084,84059.0,84058.0,0.39355321]
[1744850610537,0.005,84059.0,84058.0,0.39355321]
[1744850610701,0.005,84059.0,84058.0,0.45176414]
[1744850611132,0.005,84059.0,84058.0,0.91696414]
[1744850611133,0.003,84059.0,84058.0,0.91696414]
[1744850611648,0.01427119,84086.0,84083.0,0.23785971]
[1744850611861,0.01189258,84086.0,84083.0,0.23785971]
[1744850612036,0.01189286,84084.0,84080.0,0.23786637]
[1744850612395,0.01406042,84083.0,84080.0,0.23786637]
[1744850612634,0.01168181,84083.0,84080.0,0.23786637]
[1744850613667,0.01168181,84083.0,84082.0,0.23786303]
[1744850613863,0.01189286,84084.0,84080.0,0.23786637]
[1744850614070,0.01168181,84083.0,84082.0,0.23786264]
[1744850614271,0.01189258,84086.0,84082.0,0.23786264]
[1744850614566,0.01167202,84085.0,84083.0,0.02217763]
[1744850615021,0.00237861,84087.0,84083.0,0.03407064]
[1744850615215,0.0116818,84084.0,84083.0,0.02217763]
[1744850615394,0.00237861,84087.0,84083.0,0.02217763]
[1744850615395,0.01189258,84086.0,84083.0,0.02217763]
[1744850615610,0.0116867,84084.0,84083.0,0.02217763]
[1744850615808,0.006,84083.0,84082.0,0.23886264]
[1744850616007,0.006,84083.0,84082.0,0.26101915]
[1744850616215,0.01175024,84083.0,84082.0,0.26001915]
[1744850616588,0.003,84084.0,84082.0,0.23786264]
[1744850616788,0.01175024,84083.0,84082.0,0.23786264]
[1744850617511,0.003,84084.0,84082.0,0.23786264]
[1744850617690,0.00013629,84090.0,84087.0,0.23784637]
[1744850617892,0.01187258,84089.0,84087.0,0.23784637]
[1744850618211,0.02376474,84089.0,84085.0,0.23785285]
[1744850618769,0.01187258,84089.0,84085.0,0.23785285]
[1744850619200,0.01287258,84089.0,84085.0,0.23785285]
[1744850619400,0.01187258,84089.0,84085.0,0.23785285]
[1744850619600,0.01187258,84089.0,84085.0,0.24974557]
[1744850620028,0.01187258,84089.0,84085.0,0.23785285]
[1744850620238,0.01287258,84089.0,84085.0,0.23785285]
[1744850620455,0.01189244,84087.0,84082.0,0.23786264]
[1744850620965,0.01189272,84085.0,84080.0,0.37622827]
[1744850621184,0.24975498,84083.0,84080.0,0.13836]
[1744850621419,0.00237861,84082.0,84080.0,0.13836]
[1744850621657,0.0119071,84082.0,84080.0,0.13836]
[1744850621870,0.01428571,84082.0,84080.0,0.13836]
[1744850622062,0.25215122,84082.0,84080.0,0.13836]
[1744850622263,0.0119071,84082.0,84080.0,0.13836]
[1744850622567,0.01428571,84082.0,84080.0,0.13836]
[1744850623464,0.23786586,84081.0,84080.0,0.13836]
[1744850623656,0.0119071,84082.0,84080.0,0.13836]
[1744850623809,0.01083691,84081.0,84080.0,0.13836]
[1744850624022,0.01083691,84081.0,84080.0,0.13936]
[1744850624436,0.01083691,84081.0,84080.0,0.13836]
[1744850624785,0.01083691,84081.0,84080.0,0.14036]
[1744850625106,0.24870277,84081.0,84080.0,0.14036]
[1744850625630,0.24870277,84081.0,84080.0,0.13836]
[1744850627133,0.01189414,84075.0,84071.0,0.4188]
[1744850627363,0.23788858,84073.0,84071.0,0.4188]
[1744850627639,0.00237861,84072.0,84071.0,0.4188]
[1744850627806,0.0132126,84072.0,84071.0,0.4188]
[1744850628206,0.0132126,84072.0,84071.0,0.4218]
[1744850628420,0.0132126,84072.0,84071.0,0.4228]
[1744850628630,0.0132126,84072.0,84071.0,0.4198]
[1744850629706,0.0132126,84072.0,84071.0,0.4188]
[1744850629912,0.0132126,84072.0,84071.0,0.4218]
[1744850630531,0.0132126,84072.0,84071.0,0.4208]
[1744850630715,0.0620126,84072.0,84071.0,0.002]
[1744850630918,0.0630126,84072.0,84071.0,0.002]
[1744850631264,0.01189612,84061.0,84058.0,0.0008424]
[1744850631463,0.25099301,84060.0,84058.0,0.0008424]
[1744850631667,0.2486144,84060.0,84058.0,0.0008424]
[1744850631868,0.00237861,84059.0,84058.0,0.0008424]
[1744850632199,0.01307261,84059.0,84058.0,0.0008424]
[1744850632544,0.11117261,84059.0,84058.0,0.0008424]
[1744850632662,0.12644124,84059.0,84058.0,0.0008424]
[1744850632995,0.11117261,84059.0,84058.0,0.0008424]
[1744850634123,0.11417261,84059.0,84058.0,0.0018424]
[1744850634512,0.11417261,84059.0,84058.0,0.0008424]
[1744850634709,0.11917261,84059.0,84058.0,0.0018424]
[1744850635106,0.59316137,84059.0,84058.0,0.0018424]
[1744850635334,0.59316137,84059.0,84049.0,0.0008422]
[1744850635335,0.35454085,84053.0,84049.0,0.0008422]
[1744850635524,0.77072698,84052.0,84051.0,0.00213634]
[1744850635725,0.77834837,84052.0,84051.0,0.00213634]
[1744850637340,0.78234837,84052.0,84051.0,0.00213634]
[1744850637722,0.76780752,84052.0,84051.0,0.00213634]
[1744850638611,0.77380752,84052.0,84051.0,0.00213634]
[1744850638809,0.89325543,84052.0,84051.0,0.00213634]
[1744850639480,0.88325543,84052.0,84051.0,0.00213634]
[1744850640101,0.76380752,84052.0,84051.0,0.00213634]
[1744850643409,0.78594462,84052.0,84051.0,0.00213634]
[1744850643607,0.80048547,84052.0,84051.0,0.00213634]
[1744850645350,0.63919444,84050.0,84049.0,0.0008422]
[1744850645550,0.88282225,84050.0,84049.0,0.0008422]
[1744850645955,0.7689542,84050.0,84049.0,0.0008422]
[1744850646154,0.9210913,84050.0,84049.0,0.0008422]
[1744850647104,0.9240913,84050.0,84049.0,0.0008422]
[1744850647686,0.9260913,84050.0,84049.0,0.0018422]
[1744850647872,0.9736913,84050.0,84049.0,0.0008422]
[1744850648067,0.9736913,84050.0,84049.0,0.0018422]
[1744850648266,0.9806913,84050.0,84049.0,0.0018422]
[1744850648498,1.10634674,84050.0,84049.0,0.0018422]
[1744850649266,0.98689883,84050.0,84049.0,0.0018422]
[1744850650107,1.39779883,84050.0,84049.0,0.0018422]
[1744850650567,0.63861426,84043.0,84042.0,1e-08]
[1744850650901,0.80039868,84043.0,84042.0,1e-08]
[1744850651105,0.91984659,84043.0,84042.0,1e-08]
[1744850651823,0.93591698,84043.0,84042.0,0.00100001]
[1744850652332,0.93891698,84043.0,84042.0,0.00100001]
[1744850652541,0.81946907,84043.0,84042.0,0.00100001]
[1744850652832,0.10694085,84040.0,84037.0,0.000842]
[1744850653046,0.25876737,84040.0,84037.0,0.000842]
[1744850653251,0.26659308,84040.0,84037.0,0.000842]
[1744850653746,0.28873018,84040.0,84037.0,0.000842]
[1744850653924,0.29980057,84040.0,84037.0,0.000842]
[1744850654132,0.30280057,84040.0,84037.0,0.000842]
[1744850654326,0.30880057,84040.0,84037.0,0.000842]
[1744850654830,0.78720057,84040.0,84037.0,0.000842]
[1744850655468,0.64880057,84040.0,84037.0,0.000842]
[1744850655670,0.78720057,84040.0,84037.0,0.000842]
[1744850655870,0.89373943,84040.0,84037.0,0.000842]
[1744850656618,0.78720057,84040.0,84037.0,0.000842]
[1744850657644,0.78461027,84040.0,84037.0,0.000842]
[1744850658072,0.77353988,84040.0,84037.0,0.000842]
[1744850659496,0.68113988,84040.0,84037.0,0.000842]
[1744850659679,0.54273988,84040.0,84037.0,0.000842]
[1744850660675,0.51273988,84040.0,84037.0,0.000842]
[1744850662638,0.63218779,84040.0,84037.0,0.000842]
[1744850662857,0.68788779,84040.0,84037.0,0.000842]
[1744850663466,0.69900629,84040.0,84037.0,0.000842]
[1744850663669,0.70521382,84040.0,84037.0,0.000842]
[1744850664549,0.58276591,84040.0,84037.0,0.000842]
[1744850664754,0.58176591,84040.0,84037.0,0.000842]
[1744850664963,0.58976591,84040.0,84037.0,0.000842]
[1744850665215,0.52952506,84040.0,84037.0,0.000842]
[1744850665434,0.51952506,84040.0,84037.0,0.000842]
[1744850665633,0.51452506,84040.0,84037.0,0.000842]
[1744850665853,0.49738796,84040.0,84037.0,0.000842]
[1744850666324,0.48126946,84040.0,84037.0,0.000842]
[1744850666543,0.47326946,84040.0,84037.0,0.000842]
[1744850666977,0.47826946,84040.0,84037.0,0.000842]
[1744850668241,0.48226946,84040.0,84037.0,0.000842]
[1744850670449,0.36282155,84040.0,84037.0,0.000842]
[1744850670607,0.36535549,84040.0,84037.0,0.000842]
[1744850671011,0.3628185,84040.0,84037.0,0.000842]
[1744850671410,0.36535549,84040.0,84037.0,0.000842]
[1744850672948,0.60098078,84040.0,84037.0,0.000842]
[1744850674347,0.4848034,84040.0,84037.0,0.000842]
[1744850676980,0.36535549,84040.0,84037.0,0.000842]
[1744850683990,0.5342034,84040.0,84037.0,0.000842]
[1744850684663,0.54874425,84040.0,84037.0,0.000842]
[1744850687281,0.71874425,84040.0,84037.0,0.000842]
[1744850689270,0.66934425,84040.0,84037.0,0.000842]
[1744850689478,0.36535549,84040.0,84037.0,0.000842]
[1744850689832,0.02535549,84040.0,84037.0,0.000842]
[1744850690075,0.02535549,84040.0,84038.0,0.048742]
[1744850690438,0.0277341,84040.0,84038.0,0.048742]
[1744850693589,0.2563374,84040.0,84039.0,0.0008426]
[1744850693926,0.2593374,84040.0,84039.0,0.0008426]
[1744850698108,0.02135549,84040.0,84039.0,0.0008426]
[1744850698308,0.01514796,84040.0,84039.0,0.0008426]
[1744850700276,0.25550848,84040.0,84039.0,0.0008426]
[1744850700428,0.25312987,84040.0,84039.0,0.0008426]
[1744850703767,0.29902987,84040.0,84039.0,0.0008426]
[1744850704973,0.30902987,84040.0,84039.0,0.0008426]
[1744850705345,0.78301863,84040.0,84039.0,0.0008426]
[1744850705545,0.82851863,84040.0,84039.0,0.0008426]
[1744850706340,0.82651863,84040.0,84039.0,0.0008426]
[1744850706770,0.83051863,84040.0,84039.0,0.0008426]
[1744850707178,0.82751863,84040.0,84039.0,0.0008426]
[1744850707395,0.83351863,84040.0,84039.0,0.0008426]
[1744850709528,0.95296654,84040.0,84039.0,0.0008426]
[1744850709742,0.386,84039.0,84038.0,0.000842]
[1744850709967,0.68562864,84039.0,84038.0,0.000842]
[1744850710191,0.25252842,84038.0,84037.0,1e-08]
[1744850710413,0.57811994,84038.0,84037.0,1e-08]
[1744850710638,1.08326785,84038.0,84037.0,1e-08]
[1744850711602,0.97281994,84038.0,84037.0,1e-08]
[1744850711905,0.96481994,84038.0,84037.0,1e-08]
[1744850712338,1.38671994,84038.0,84037.0,1e-08]
[1744850712613,1.43667275,84038.0,84037.0,1e-08]
[1744850712757,1.44167275,84038.0,84037.0,1e-08]
[1744850712964,1.56112066,84038.0,84037.0,1e-08]
[1744850713389,1.55612066,84038.0,84037.0,1e-08]
[1744850713784,1.56932819,84038.0,84037.0,1e-08]
[1744850714948,1.51937538,84038.0,84037.0,1e-08]
[1744850715097,1.39892747,84038.0,84037.0,1e-08]
[1744850715310,1.53880747,84038.0,84037.0,1e-08]
[1744850727358,1.53884747,84038.0,84037.0,1e-08]
[1744850743322,1.29268662,84038.0,84037.0,1e-08]
[1744850743529,0.68323871,84038.0,84037.0,1e-08]
[1744850743941,0.27233871,84038.0,84037.0,1e-08]
[1744850744191,0.26133871,84038.0,84037.0,1e-08]
[1744850744336,0.26533871,84038.0,84037.0,1e-08]
[1744850744866,0.25433871,84038.0,84037.0,1e-08]
[1744850745083,0.26133871,84038.0,84037.0,1e-08]
[1744850745963,0.26133871,84038.0,84037.0,0.23799041]
[1744850745964,0.02335114,84038.0,84037.0,0.23799041]
[1744850746148,0.26133871,84038.0,84037.0,0.0717375]
[1744850746480,0.25963697,84038.0,84037.0,0.0717375]
[1744850747030,0.25563697,84038.0,84037.0,0.0717375]
[1744850747443,0.25763697,84038.0,84037.0,1e-08]
[1744850747847,0.37408488,84038.0,84037.0,1e-08]
[1744850748251,0.71508488,84038.0,84037.0,1e-08]
[1744850748900,0.84907364,84038.0,84037.0,1e-08]
[1744850749269,0.78662573,84038.0,84037.0,1e-08]
[1744850750406,0.78562573,84038.0,84037.0,1e-08]
[1744850750858,0.78362573,84038.0,84037.0,1e-08]
[1744850751064,0.78762573,84038.0,84037.0,1e-08]
[1744850751667,0.74062573,84038.0,84037.0,1e-08]
[1744850751848,0.73962573,84038.0,84037.0,1e-08]
[1744850752566,0.74162573,84038.0,84037.0,1e-08]
[1744850752789,0.74462573,84038.0,84037.0,1e-08]
[1744850753957,0.83295756,84038.0,84037.0,1e-08]
[1744850754320,0.74462573,84038.0,84037.0,1e-08]
[1744850755866,0.86962573,84038.0,84037.0,1e-08]
[1744850756072,0.74462573,84038.0,84037.0,1e-08]
[1744850756399,0.79032573,84038.0,84037.0,1e-08]
[1744850757175,0.78532573,84038.0,84037.0,1e-08]
[1744850757384,0.78932573,84038.0,84037.0,1e-08]
[1744850758769,1.26064936,84038.0,84037.0,1e-08]
[1744850759179,1.25764936,84038.0,84037.0,1e-08]
[1744850759598,0.23805556,84014.0,84013.0,0.04858541]
[1744850759775,0.24648169,84014.0,84013.0,0.04904058]
[1744850760182,0.24648169,84014.0,84013.0,0.07128206]
[1744850761216,0.00842613,84014.0,84013.0,0.07128206]
[1744850761429,0.23805272,84015.0,84013.0,0.07128206]
[1744850761642,0.00942123,84014.0,84013.0,0.04904058]
[1744850761850,0.001,84014.0,84013.0,0.04904058]
[1744850762046,0.001,84014.0,84013.0,0.0712762]
[1744850763342,0.00942874,84014.0,84013.0,0.30933459]
[1744850763582,0.01190235,84017.0,84013.0,0.30933459]
[1744850763981,0.00842384,84016.0,84014.0,0.02223562]
[1744850764279,0.001,84015.0,84014.0,0.02223562]
[1744850764483,0.0119015,84023.0,84015.0,0.01190263]
[1744850764639,0.0203213,84022.0,84017.0,0.23804706]
[1744850764981,0.00841966,84022.0,84020.0,0.28783633]
[1744850765180,0.00841966,84022.0,84021.0,0.0494]
[1744850765385,0.01190107,84026.0,84022.0,0.23803289]
[1744850765608,0.01190107,84026.0,84021.0,0.07163541]
[1744850765609,0.01190136,84024.0,84021.0,0.07163541]
[1744850765908,0.24992859,84024.0,84022.0,0.02223541]
[1744850766134,0.01080011,84023.0,84022.0,0.02223541]
[1744850766344,0.01080011,84023.0,84021.0,0.0494]
[1744850766345,0.0084215,84023.0,84021.0,0.0494]
[1744850766724,0.0084215,84023.0,84021.0,0.28743391]
[1744850766957,0.01189994,84034.0,84026.0,0.01190107]
[1744850767132,0.01189994,84034.0,84023.0,0.24993156]
[1744850767133,0.01190037,84031.0,84025.0,0.01190121]
[1744850767476,0.00620753,84035.0,84032.0,0.0469]
[1744850767681,0.00697512,84034.0,84032.0,0.0469]
[1744850768129,0.00797512,84034.0,84033.0,0.02222801]
[1744850768528,0.00697512,84034.0,84033.0,0.07112801]
[1744850768726,0.01189923,84039.0,84033.0,0.07112801]
[1744850768926,0.001,84034.0,84033.0,0.07112801]
[1744850769329,0.00807557,84034.0,84033.0,0.07112801]
[1744850769503,0.001,84034.0,84033.0,0.07112801]
[1744850769707,0.00707557,84034.0,84033.0,0.07112801]
[1744850769931,0.01189952,84037.0,84033.0,0.06612801]
[1744850770187,0.01189952,84037.0,84034.0,0.2379989]
[1744850770392,0.01189952,84037.0,84032.0,0.43572312]
[1744850770393,0.2379989,84034.0,84032.0,0.13892]
[1744850770638,0.2379989,84034.0,84028.0,0.0481]
[1744850770639,0.01190037,84031.0,84028.0,0.0481]
[1744850770846,0.00709028,84030.0,84029.0,0.13892]
[1744850771621,0.23802723,84024.0,84018.0,1.1138]
[1744850771848,0.24515181,84024.0,84023.0,0.55772]
[1744850772167,0.24515181,84024.0,84018.0,1.1138]
[1744850772393,0.23804139,84019.0,84018.0,1.1138]
[1744850772821,0.01190235,84017.0,84013.0,0.14065517]
[1744850773119,0.01897564,84016.0,84013.0,0.14065517]
[1744850773259,0.00707315,84016.0,84014.0,0.23805556]
[1744850773455,0.00237861,84019.0,84013.0,0.14065517]
[1744850773668,0.01190235,84017.0,84013.0,0.14065517]
[1744850774102,0.00706449,84016.0,84013.0,0.14065517]
[1744850774483,0.00706449,84016.0,84014.0,0.23805556]
[1744850774661,0.01190178,84021.0,84017.0,0.23804445]
[1744850774862,0.01894681,84020.0,84017.0,0.23804445]
[1744850775038,0.00704489,84020.0,84017.0,0.23804445]
[1744850775451,0.01190164,84022.0,84017.0,0.23804445]
[1744850775708,0.35190022,84032.0,84022.0,0.01190164]
[1744850775863,0.01189994,84034.0,84029.0,0.23801306]
[1744850776061,0.01189952,84037.0,84031.0,0.23800647]
[1744850776316,0.23797325,84044.0,84032.0,0.01190022]
[1744850776480,0.23797325,84044.0,84028.0,0.1402]
[1744850776481,0.01189767,84050.0,84041.0,0.01189895]
[1744850776683,0.01189796,84048.0,84044.0,0.23797058]
[1744850776954,0.01189796,84048.0,84042.0,0.23797624]
[1744850777166,0.01189838,84045.0,84039.0,0.23798248]
[1744850777393,0.01189881,84042.0,84039.0,0.23798248]
[1744850777586,0.01189824,84046.0,84039.0,0.23798248]
[1744850777587,0.01189824,84046.0,84041.0,0.23797646]
[1744850778049,0.38932452,84070.0,84041.0,0.23797646]
[1744850778050,0.01189838,84045.0,84041.0,0.23797646]
[1744850778211,0.0118981,84047.0,84043.0,0.23797251]
[1744850778840,0.01189852,84044.0,84041.0,0.23797646]
[1744850779044,0.01289824,84046.0,84041.0,0.23897646]
[1744850779294,0.01189824,84046.0,84041.0,0.23797646]
[1744850779465,0.01189782,84049.0,84043.0,0.23797318]
[1744850779665,0.00620753,84051.0,84045.0,0.23796646]
[1744850779871,0.01810506,84051.0,84043.0,0.23797318]
[1744850780068,0.00620753,84051.0,84043.0,0.23797318]
[1744850780269,0.00620753,84051.0,84040.0,0.01189909]
[1744850780270,0.00620753,84051.0,84042.0,0.24986939]
[1744850780616,0.00620753,84051.0,84042.0,0.23797058]
[1744850780891,0.25843509,84051.0,84045.0,0.23796602]
[1744850781064,0.01903445,84050.0,84045.0,0.23796602]
[1744850781473,0.01903445,84050.0,84047.0,0.23796207]
[1744850781652,0.00713678,84050.0,84047.0,0.23796207]
[1744850782258,0.00813678,84050.0,84047.0,0.23796207]
[1744850782798,0.00713678,84050.0,84047.0,0.23796207]
[1744850782997,0.00913678,84050.0,84047.0,0.23796207]
[1744850783202,0.00913678,84050.0,84049.0,0.23795643]
[1744850783959,0.002,84050.0,84049.0,0.23795643]
[1744850784307,0.002,84050.0,84049.0,0.26012064]
[1744850784658,0.02048212,84062.0,84058.0,0.2379292]
[1744850784858,0.00730729,84061.0,84058.0,0.2379292]
[1744850785077,0.00730729,84061.0,84060.0,0.23792529]
[1744850785277,0.00013624,84061.0,84060.0,0.23792529]
[1744850785680,0.00013624,84061.0,84058.0,0.2379292]
[1744850785880,0.00719064,84060.0,84058.0,0.2379292]
[1744850786516,0.01189668,84057.0,84050.0,0.23795359]
[1744850786724,0.01189668,84057.0,84045.0,0.0453]
[1744850786725,0.01928874,84056.0,84045.0,0.28326605]
[1744850786902,0.02166735,84056.0,84051.0,0.0221531]
[1744850787104,0.2379451,84053.0,84051.0,0.0221531]
[1744850787282,0.00733361,84052.0,84051.0,0.0221531]
[1744850787489,0.01189725,84053.0,84050.0,0.0221531]
[1744850787707,0.00733851,84052.0,84050.0,0.0221531]
[1744850788903,0.0192359,84052.0,84049.0,0.0221531]
[1744850789686,0.01189767,84050.0,84046.0,0.14016]
[1744850789848,0.01925592,84049.0,84046.0,0.14016]
[1744850790055,0.0073581,84049.0,84046.0,0.37812216]
[1744850790261,0.0073581,84049.0,84048.0,0.23795926]
[1744850790464,0.01427586,84053.0,84048.0,0.23795926]
[1744850790663,0.01924569,84052.0,84048.0,0.26011965]
[1744850791132,0.0073483,84052.0,84050.0,0.23795324]
[1744850791768,0.01924569,84052.0,84048.0,0.23895926]
[1744850792477,0.0083483,84052.0,84048.0,0.23895926]
[1744850792598,0.0073483,84052.0,84048.0,0.23895926]
[1744850792799,0.01924569,84052.0,84049.0,0.02216633]
[1744850793022,0.0073483,84052.0,84049.0,0.02216633]
[1744850793446,0.0073483,84052.0,84049.0,0.26012]
[1744850793833,0.01427572,84054.0,84051.0,0.23795076]
[1744850794033,0.01189668,84057.0,84053.0,0.2379451]
[1744850794797,0.00237861,84056.0,84054.0,0.02216633]
[1744850795546,0.01189697,84055.0,84052.0,0.02216633]
[1744850795913,0.00971151,84054.0,84053.0,0.02216633]
[1744850796465,0.02160862,84054.0,84051.0,0.02216633]
[1744850796903,0.02160862,84054.0,84052.0,0.02216633]
[1744850797122,0.25955089,84054.0,84052.0,0.02216633]
[1744850797361,0.25717228,84054.0,84052.0,0.02216633]
[1744850797585,0.00237861,84053.0,84051.0,0.02216633]
[1744850798034,0.0073378,84052.0,84051.0,0.02216633]
[1744850800088,0.0083378,84052.0,84051.0,0.02316633]
[1744850801021,0.0083378,84052.0,84051.0,0.001]